[Event "December 12 Late 2023"]
[Site "https://www.chess.com"]
[Date "2023.12.12"]
[Round "11"]
[White "Gerbelli Neto, Eduardo"]
[Black "Shapiro, Viktor"]
[Result "0-1"]
[Board "56"]
[TimeControl "180+1"]
[WhiteFideId "2103281"]
[BlackFideId "4175700"]
[WhiteElo "2365"]
[BlackElo "2518"]
[WhiteTeam "BRA"]
[BlackTeam "RUS"]
[WhiteClock "0:00:00"]
[BlackClock "0:00:02"]

1. e4 {[%clk 0:03:00]}  Nf6 {[%clk 0:02:59]} 2. Nc3 {[%clk 0:03:00]}  d5 {[%clk 0:02:59]} 3. e5 {[%clk 0:03:00]}  Nfd7 {[%clk 0:02:59]} 4. e6 {[%clk 0:03:00]}  fxe6 {[%clk 0:03:00]} 5. d4 {[%clk 0:03:00]}  g6 {[%clk 0:03:00]} 6. Nf3 {[%clk 0:02:56]}  Bg7 {[%clk 0:03:00]} 7. h4 {[%clk 0:02:56]}  Nf8 {[%clk 0:02:59]} 8. h5 {[%clk 0:02:54]}  c5 {[%clk 0:02:59]} 9. Be3 {[%clk 0:02:44]}  Nc6 {[%clk 0:02:57]} 10. Bb5 {[%clk 0:02:43]}  cxd4 {[%clk 0:02:35]} 11. Bxd4 {[%clk 0:02:43]}  Bxd4 {[%clk 0:02:26]} 12. Qxd4 {[%clk 0:02:44]}  Rg8 {[%clk 0:02:23]} 13. Ne5 {[%clk 0:02:13]}  Qd6 {[%clk 0:02:17]} 14. Bxc6+ {[%clk 0:02:11]}  bxc6 {[%clk 0:02:18]} 15. Qf4 {[%clk 0:02:09]}  Rg7 {[%clk 0:01:47]} 16. h6 {[%clk 0:02:08]}  g5 {[%clk 0:01:48]} 17. hxg7 {[%clk 0:01:51]}  gxf4 {[%clk 0:01:47]} 18. Rh5 {[%clk 0:01:34]}  Ba6 {[%clk 0:01:08]} 19. g8=Q {[%clk 0:01:23]}  O-O-O {[%clk 0:01:07]} 20. Nf7 {[%clk 0:01:13]}  Qb4 {[%clk 0:01:01]} 21. O-O-O {[%clk 0:01:13]}  Re8 {[%clk 0:00:56]} 22. Ne5 {[%clk 0:01:06]}  Kc7 {[%clk 0:00:50]} 23. Qf7 {[%clk 0:00:46]}  Rb8 {[%clk 0:00:46]} 24. Nd3 {[%clk 0:00:37]}  Bxd3 {[%clk 0:00:43]} 25. Rxd3 {[%clk 0:00:38]}  Qxb2+ {[%clk 0:00:36]} 26. Kd2 {[%clk 0:00:38]}  Nd7 {[%clk 0:00:29]} 27. Qxe6 {[%clk 0:00:29]}  Qb4 {[%clk 0:00:22]} 28. Ke2 {[%clk 0:00:20]}  Nf6 {[%clk 0:00:14]} 29. Re5 {[%clk 0:00:18]}  Re8 {[%clk 0:00:13]} 30. a3 {[%clk 0:00:10]}  Qc5 {[%clk 0:00:11]} 31. Kf1 {[%clk 0:00:07]}  Qc4 {[%clk 0:00:11]} 32. Kg1 {[%clk 0:00:06]}  h5 {[%clk 0:00:10]} 33. Ne2 {[%clk 0:00:05]}  Qxc2 {[%clk 0:00:08]} 34. Nxf4 {[%clk 0:00:05]}  Qc1+ {[%clk 0:00:08]} 35. Kh2 {[%clk 0:00:06]}  Qxf4+ {[%clk 0:00:08]} 36. Kg1 {[%clk 0:00:04]}  Qc1+ {[%clk 0:00:08]} 37. Kh2 {[%clk 0:00:05]}  Ng4+ {[%clk 0:00:08]} 38. Kg3 {[%clk 0:00:04]}  Qc5 {[%clk 0:00:07]} 39. Re2 {[%clk 0:00:03]}  Rg8 {[%clk 0:00:03]} 40. Kh3 {[%clk 0:00:02]}  Nxf2+ {[%clk 0:00:02]} 41. Rxf2 {[%clk 0:00:03]}  Qxf2 {[%clk 0:00:02]} 42. Qxe7+ {[%clk 0:00:03]}  Kb6 {[%clk 0:00:01]} 43. Qe3+ {[%clk 0:00:03]}  Qxe3+ {[%clk 0:00:01]} 44. Rxe3 {[%clk 0:00:04]}  Rg4 {[%clk 0:00:01]} 45. Rb3+ {[%clk 0:00:04]}  Kc5 {[%clk 0:00:01]} 46. Rc3+ {[%clk 0:00:04]}  Kd6 {[%clk 0:00:01]} 47. Rf3 {[%clk 0:00:04]}  Ra4 {[%clk 0:00:02]} 48. g3 {[%clk 0:00:04]}  Kc5 {[%clk 0:00:02]} 49. Rf6 {[%clk 0:00:03]}  a5 {[%clk 0:00:03]} 50. Rf3 {[%clk 0:00:02]}  Rc4 {[%clk 0:00:02]} 51. Rb3 {[%clk 0:00:00]}  a4 {[%clk 0:00:02]} 0-1

[Event "December 12 Late 2023"]
[Site "https://www.chess.com"]
[Date "2023.12.12"]
[Round "11"]
[White "Rian, Kapriaga"]
[Black "Nadera, Barlo A."]
[Result "0-1"]
[Board "58"]
[TimeControl "180+1"]
[WhiteFideId "7103263"]
[BlackFideId "5200598"]
[WhiteElo "2392"]
[BlackElo "2236"]
[WhiteTeam "INA"]
[BlackTeam "PHI"]
[WhiteClock "0:00:01"]
[BlackClock "0:00:20"]

1. d4 {[%clk 0:03:00]}  d5 {[%clk 0:02:59]} 2. Nf3 {[%clk 0:03:00]}  c6 {[%clk 0:02:58]} 3. Bf4 {[%clk 0:02:56]}  Qb6 {[%clk 0:02:58]} 4. Qc1 {[%clk 0:02:54]}  Bf5 {[%clk 0:02:58]} 5. e3 {[%clk 0:02:53]}  h6 {[%clk 0:02:56]} 6. c4 {[%clk 0:02:53]}  e6 {[%clk 0:02:55]} 7. Nc3 {[%clk 0:02:49]}  a5 {[%clk 0:02:54]} 8. c5 {[%clk 0:02:47]}  Qa7 {[%clk 0:02:53]} 9. h3 {[%clk 0:02:45]}  Nd7 {[%clk 0:02:53]} 10. Be2 {[%clk 0:02:38]}  Ngf6 {[%clk 0:02:52]} 11. O-O {[%clk 0:02:37]}  Be7 {[%clk 0:02:53]} 12. Na4 {[%clk 0:02:30]}  O-O {[%clk 0:02:49]} 13. a3 {[%clk 0:02:30]}  Rfc8 {[%clk 0:02:37]} 14. b4 {[%clk 0:02:21]}  b6 {[%clk 0:02:37]} 15. cxb6 {[%clk 0:02:09]}  Nxb6 {[%clk 0:02:35]} 16. Nc5 {[%clk 0:02:09]}  Nbd7 {[%clk 0:02:26]} 17. Ne5 {[%clk 0:02:04]}  Nxe5 {[%clk 0:02:21]} 18. Bxe5 {[%clk 0:02:01]}  Nd7 {[%clk 0:02:20]} 19. Bg3 {[%clk 0:01:56]}  Bf6 {[%clk 0:02:04]} 20. Qc3 {[%clk 0:01:52]}  Bd8 {[%clk 0:01:40]} 21. Rfc1 {[%clk 0:01:48]}  Be7 {[%clk 0:01:30]} 22. Bf1 {[%clk 0:01:39]}  Bg6 {[%clk 0:01:17]} 23. Be2 {[%clk 0:01:38]}  Bf5 {[%clk 0:01:14]} 24. Bf1 {[%clk 0:01:25]}  Bg6 {[%clk 0:01:14]} 25. f3 {[%clk 0:01:19]}  Bf5 {[%clk 0:01:09]} 26. e4 {[%clk 0:01:15]}  Bxc5 {[%clk 0:01:05]} 27. dxc5 {[%clk 0:00:52]}  dxe4 {[%clk 0:01:05]} 28. fxe4 {[%clk 0:00:52]}  Bxe4 {[%clk 0:01:04]} 29. Re1 {[%clk 0:00:44]}  Bd5 {[%clk 0:01:00]} 30. Bd6 {[%clk 0:00:34]}  Re8 {[%clk 0:00:57]} 31. b5 {[%clk 0:00:28]}  cxb5 {[%clk 0:00:50]} 32. Bxb5 {[%clk 0:00:27]}  Red8 {[%clk 0:00:50]} 33. a4 {[%clk 0:00:18]}  Rac8 {[%clk 0:00:49]} 34. Rac1 {[%clk 0:00:16]}  Nf6 {[%clk 0:00:47]} 35. Be5 {[%clk 0:00:15]}  Ne4 {[%clk 0:00:45]} 36. Qd4 {[%clk 0:00:15]}  f6 {[%clk 0:00:36]} 37. Bh2 {[%clk 0:00:14]}  Nxc5 {[%clk 0:00:31]} 38. Kh1 {[%clk 0:00:09]}  Bxg2+ {[%clk 0:00:30]} 39. Kxg2 {[%clk 0:00:07]}  Rxd4 {[%clk 0:00:30]} 40. Bg1 {[%clk 0:00:04]}  Qb7+ {[%clk 0:00:30]} 41. Kh2 {[%clk 0:00:04]}  Rd2+ {[%clk 0:00:29]} 42. Kg3 {[%clk 0:00:04]}  Ne4+ {[%clk 0:00:27]} 43. Kh4 {[%clk 0:00:04]}  Rxc1 {[%clk 0:00:27]} 44. Rxc1 {[%clk 0:00:03]}  Qf7 {[%clk 0:00:23]} 45. Be3 {[%clk 0:00:02]}  g5+ {[%clk 0:00:22]} 46. Kg4 {[%clk 0:00:01]}  f5+ {[%clk 0:00:20]} 47. Kf3 {[%clk 0:00:01]}  Qh5# {[%clk 0:00:20]} 0-1

[Event "December 12 Late 2023"]
[Site "https://www.chess.com"]
[Date "2023.12.12"]
[Round "11"]
[White "Akhayan, Ruben"]
[Black "Shapiro, Daniel"]
[Result "1/2-1/2"]
[Board "63"]
[TimeControl "180+1"]
[WhiteFideId "204439"]
[BlackFideId "2001780"]
[WhiteElo "2400"]
[BlackElo "2316"]
[WhiteTeam "BEL"]
[BlackTeam "USA"]
[WhiteClock "0:00:21"]
[BlackClock "0:00:27"]

1. e4 {[%clk 0:03:00]}  c5 {[%clk 0:02:59]} 2. Nf3 {[%clk 0:02:59]}  Nc6 {[%clk 0:02:59]} 3. Nc3 {[%clk 0:02:59]}  e6 {[%clk 0:02:51]} 4. d4 {[%clk 0:02:58]}  cxd4 {[%clk 0:02:51]} 5. Nxd4 {[%clk 0:02:59]}  a6 {[%clk 0:02:44]} 6. g3 {[%clk 0:02:58]}  Qc7 {[%clk 0:02:42]} 7. Bg2 {[%clk 0:02:58]}  Nf6 {[%clk 0:02:40]} 8. O-O {[%clk 0:02:58]}  Be7 {[%clk 0:02:35]} 9. Nxc6 {[%clk 0:02:43]}  bxc6 {[%clk 0:02:33]} 10. a4 {[%clk 0:02:40]}  a5 {[%clk 0:02:25]} 11. Bf4 {[%clk 0:02:25]}  e5 {[%clk 0:02:23]} 12. Bg5 {[%clk 0:02:23]}  h6 {[%clk 0:02:21]} 13. Bxf6 {[%clk 0:02:14]}  Bxf6 {[%clk 0:02:22]} 14. Qd2 {[%clk 0:02:13]}  O-O {[%clk 0:02:18]} 15. Rad1 {[%clk 0:02:12]}  Be7 {[%clk 0:02:15]} 16. Ne2 {[%clk 0:01:59]}  Rd8 {[%clk 0:02:07]} 17. c4 {[%clk 0:01:58]}  Ba6 {[%clk 0:02:05]} 18. b3 {[%clk 0:01:57]}  Rab8 {[%clk 0:02:05]} 19. Nc1 {[%clk 0:01:56]}  f5 {[%clk 0:01:52]} 20. exf5 {[%clk 0:01:51]}  d5 {[%clk 0:01:51]} 21. Qc2 {[%clk 0:01:25]}  Bg5 {[%clk 0:01:36]} 22. Rfe1 {[%clk 0:01:17]}  dxc4 {[%clk 0:01:12]} 23. bxc4 {[%clk 0:01:13]}  Rb4 {[%clk 0:01:06]} 24. Rxd8+ {[%clk 0:01:05]}  Bxd8 {[%clk 0:01:05]} 25. Bf1 {[%clk 0:00:49]}  Qb6 {[%clk 0:00:58]} 26. c5 {[%clk 0:00:43]}  Qb7 {[%clk 0:00:56]} 27. Qa2+ {[%clk 0:00:38]}  Kf8 {[%clk 0:00:53]} 28. Rd1 {[%clk 0:00:37]}  Bf6 {[%clk 0:00:52]} 29. Qe6 {[%clk 0:00:34]}  Bxf1 {[%clk 0:00:44]} 30. Rxf1 {[%clk 0:00:34]}  Rxa4 {[%clk 0:00:42]} 31. Ne2 {[%clk 0:00:31]}  Re4 {[%clk 0:00:30]} 32. Nc3 {[%clk 0:00:29]}  Rd4 {[%clk 0:00:29]} 33. Ne2 {[%clk 0:00:23]}  Rd5 {[%clk 0:00:27]} 34. Nc3 {[%clk 0:00:22]}  Rd4 {[%clk 0:00:27]} 35. Ne2 {[%clk 0:00:21]}  Rd5 {[%clk 0:00:27]} 36. Nc3 {[%clk 0:00:21]}  Rd4 {[%clk 0:00:27]} 1/2-1/2

[Event "December 12 Late 2023"]
[Site "https://www.chess.com"]
[Date "2023.12.12"]
[Round "11"]
[White "NovakRatko"]
[Black "Ruiz Aguilar, Pablo Alexander"]
[Result "1-0"]
[Board "64"]
[TimeControl "180+1"]
[BlackFideId "4401352"]
[WhiteElo "2394"]
[BlackElo "2303"]
[BlackTeam "COL"]
[WhiteClock "0:01:12"]
[BlackClock "0:00:00"]

1. d4 {[%clk 0:03:00]}  d5 {[%clk 0:02:59]} 2. c4 {[%clk 0:03:01]}  c6 {[%clk 0:02:59]} 3. cxd5 {[%clk 0:03:01]}  cxd5 {[%clk 0:02:59]} 4. Nc3 {[%clk 0:03:02]}  Nc6 {[%clk 0:02:59]} 5. f3 {[%clk 0:03:02]}  Nf6 {[%clk 0:02:53]} 6. e4 {[%clk 0:03:02]}  dxe4 {[%clk 0:02:53]} 7. d5 {[%clk 0:03:03]}  Ne5 {[%clk 0:02:48]} 8. fxe4 {[%clk 0:03:03]}  a6 {[%clk 0:02:45]} 9. Qd4 {[%clk 0:03:02]}  Ng6 {[%clk 0:02:42]} 10. e5 {[%clk 0:03:02]}  Ng8 {[%clk 0:02:37]} 11. Bd3 {[%clk 0:03:01]}  e6 {[%clk 0:02:35]} 12. d6 {[%clk 0:03:01]}  Bd7 {[%clk 0:02:34]} 13. Nf3 {[%clk 0:02:58]}  Nh6 {[%clk 0:02:30]} 14. O-O {[%clk 0:02:48]}  Nf5 {[%clk 0:02:30]} 15. Bxf5 {[%clk 0:02:47]}  exf5 {[%clk 0:02:30]} 16. Ng5 {[%clk 0:02:41]}  h6 {[%clk 0:02:23]} 17. Nxf7 {[%clk 0:02:31]}  Kxf7 {[%clk 0:02:22]} 18. Qd5+ {[%clk 0:02:31]}  Ke8 {[%clk 0:02:03]} 19. e6 {[%clk 0:02:31]}  Bc6 {[%clk 0:02:00]} 20. Qxf5 {[%clk 0:02:22]}  Qf6 {[%clk 0:01:58]} 21. d7+ {[%clk 0:02:09]}  Ke7 {[%clk 0:01:48]} 22. Qc5+ {[%clk 0:02:07]}  Kxe6 {[%clk 0:01:32]} 23. Rxf6+ {[%clk 0:02:05]}  gxf6 {[%clk 0:01:31]} 24. Qc4+ {[%clk 0:01:59]}  Kxd7 {[%clk 0:01:29]} 25. Qd3+ {[%clk 0:01:59]}  Kc7 {[%clk 0:00:12]} 26. Qxg6 {[%clk 0:01:57]}  Bc5+ {[%clk 0:00:13]} 27. Kf1 {[%clk 0:01:57]}  Rhg8 {[%clk 0:00:12]} 28. Qf7+ {[%clk 0:01:53]}  Kb6 {[%clk 0:00:12]} 29. g3 {[%clk 0:01:48]}  Raf8 {[%clk 0:00:05]} 30. Qe6 {[%clk 0:01:36]}  Re8 {[%clk 0:00:02]} 31. Na4+ {[%clk 0:01:27]}  Ka7 {[%clk 0:00:02]} 32. Nxc5 {[%clk 0:01:26]}  Rxe6 {[%clk 0:00:01]} 33. Nxe6 {[%clk 0:01:27]}  Re8 {[%clk 0:00:01]} 34. Nd4 {[%clk 0:01:22]}  Re4 {[%clk 0:00:01]} 35. Nxc6+ {[%clk 0:01:21]}  bxc6 {[%clk 0:00:01]} 36. Bxh6 {[%clk 0:01:21]}  Kb7 {[%clk 0:00:02]} 37. Re1 {[%clk 0:01:18]}  Rc4 {[%clk 0:00:02]} 38. Bg7 {[%clk 0:01:16]}  f5 {[%clk 0:00:01]} 39. Bc3 {[%clk 0:01:15]}  f4 {[%clk 0:00:01]} 40. g4 {[%clk 0:01:14]}  f3 {[%clk 0:00:00]} 41. h3 {[%clk 0:01:12]} 1-0

[Event "December 12 Late 2023"]
[Site "https://www.chess.com"]
[Date "2023.12.12"]
[Round "11"]
[White "Floresvillar Gonzalez, Luis Migu"]
[Black "ChessSG1"]
[Result "1-0"]
[Board "66"]
[TimeControl "180+1"]
[WhiteFideId "5100542"]
[WhiteElo "2233"]
[BlackElo "2451"]
[WhiteTeam "MEX"]
[WhiteClock "0:00:06"]
[BlackClock "0:00:00"]

1. e4 {[%clk 0:02:40]}  c5 {[%clk 0:02:59]} 2. d4 {[%clk 0:02:39]}  cxd4 {[%clk 0:02:59]} 3. c3 {[%clk 0:02:39]}  Nf6 {[%clk 0:02:57]} 4. e5 {[%clk 0:02:38]}  Nd5 {[%clk 0:02:58]} 5. Qxd4 {[%clk 0:02:36]}  e6 {[%clk 0:02:57]} 6. Nf3 {[%clk 0:02:33]}  d6 {[%clk 0:02:55]} 7. exd6 {[%clk 0:02:31]}  Nc6 {[%clk 0:02:52]} 8. Qh4 {[%clk 0:02:27]}  Qxd6 {[%clk 0:02:46]} 9. Nbd2 {[%clk 0:02:21]}  Be7 {[%clk 0:02:37]} 10. Qg3 {[%clk 0:02:21]}  O-O {[%clk 0:02:17]} 11. Qxd6 {[%clk 0:02:19]}  Bxd6 {[%clk 0:02:17]} 12. Ne4 {[%clk 0:02:20]}  Be7 {[%clk 0:02:18]} 13. Bd3 {[%clk 0:02:19]}  h6 {[%clk 0:02:09]} 14. O-O {[%clk 0:02:18]}  b6 {[%clk 0:02:08]} 15. Re1 {[%clk 0:02:17]}  Bb7 {[%clk 0:02:07]} 16. Bd2 {[%clk 0:02:10]}  Rfd8 {[%clk 0:02:05]} 17. Rad1 {[%clk 0:02:06]}  Rac8 {[%clk 0:01:24]} 18. Bb1 {[%clk 0:02:05]}  Na5 {[%clk 0:01:17]} 19. h3 {[%clk 0:02:03]}  Nc4 {[%clk 0:01:16]} 20. Bc1 {[%clk 0:02:03]}  b5 {[%clk 0:01:10]} 21. a3 {[%clk 0:02:02]}  a5 {[%clk 0:01:07]} 22. Ba2 {[%clk 0:02:02]}  a4 {[%clk 0:01:05]} 23. Nd4 {[%clk 0:01:53]}  Ba6 {[%clk 0:01:01]} 24. Nd2 {[%clk 0:01:49]}  Ndb6 {[%clk 0:00:59]} 25. Nxc4 {[%clk 0:01:48]}  bxc4 {[%clk 0:00:54]} 26. Nf3 {[%clk 0:01:39]}  Bb7 {[%clk 0:00:52]} 27. Ne5 {[%clk 0:01:37]}  Rxd1 {[%clk 0:00:40]} 28. Rxd1 {[%clk 0:01:36]}  Bd5 {[%clk 0:00:31]} 29. Be3 {[%clk 0:01:34]}  Na8 {[%clk 0:00:29]} 30. Bd4 {[%clk 0:01:31]}  f6 {[%clk 0:00:24]} 31. Ng4 {[%clk 0:01:31]}  Nc7 {[%clk 0:00:22]} 32. Ne3 {[%clk 0:01:30]}  Rb8 {[%clk 0:00:17]} 33. Nxd5 {[%clk 0:01:27]}  exd5 {[%clk 0:00:17]} 34. Rd2 {[%clk 0:01:27]}  Bd6 {[%clk 0:00:16]} 35. g3 {[%clk 0:01:22]}  Kf7 {[%clk 0:00:17]} 36. Kg2 {[%clk 0:01:22]}  Ke6 {[%clk 0:00:17]} 37. f4 {[%clk 0:01:21]}  Nb5 {[%clk 0:00:17]} 38. Be3 {[%clk 0:01:17]}  Nc7 {[%clk 0:00:11]} 39. Re2 {[%clk 0:01:17]}  Kd7 {[%clk 0:00:11]} 40. Bd4 {[%clk 0:01:12]}  Kc6 {[%clk 0:00:11]} 41. Kf3 {[%clk 0:01:08]}  Nb5 {[%clk 0:00:11]} 42. Be3 {[%clk 0:01:06]}  Nc7 {[%clk 0:00:11]} 43. Bc1 {[%clk 0:01:05]}  Ne8 {[%clk 0:00:10]} 44. h4 {[%clk 0:01:01]}  f5 {[%clk 0:00:11]} 45. Be3 {[%clk 0:01:00]}  Nf6 {[%clk 0:00:10]} 46. Bb1 {[%clk 0:00:55]}  Ne4 {[%clk 0:00:10]} 47. Bxe4 {[%clk 0:00:55]}  dxe4+ {[%clk 0:00:10]} 48. Kf2 {[%clk 0:00:54]}  Rb3 {[%clk 0:00:10]} 49. Bd4 {[%clk 0:00:53]}  Kd5 {[%clk 0:00:09]} 50. Bxg7 {[%clk 0:00:51]}  h5 {[%clk 0:00:05]} 51. Bd4 {[%clk 0:00:50]}  Bxa3 {[%clk 0:00:03]} 52. bxa3 {[%clk 0:00:49]}  Rxa3 {[%clk 0:00:04]} 53. Rd2 {[%clk 0:00:48]}  Kc6 {[%clk 0:00:03]} 54. Rb2 {[%clk 0:00:47]}  Ra1 {[%clk 0:00:04]} 55. Rb6+ {[%clk 0:00:44]}  Kc7 {[%clk 0:00:04]} 56. Rb5 {[%clk 0:00:42]}  Ra2+ {[%clk 0:00:04]} 57. Ke3 {[%clk 0:00:39]}  a3 {[%clk 0:00:05]} 58. Rxf5 {[%clk 0:00:39]}  Rg2 {[%clk 0:00:05]} 59. Kxe4 {[%clk 0:00:37]}  Rxg3 {[%clk 0:00:02]} 60. Rxh5 {[%clk 0:00:36]}  a2 {[%clk 0:00:02]} 61. Ra5 {[%clk 0:00:36]}  Rg2 {[%clk 0:00:03]} 62. f5 {[%clk 0:00:33]}  Rh2 {[%clk 0:00:02]} 63. f6 {[%clk 0:00:32]}  Rxh4+ {[%clk 0:00:01]} 64. Ke3 {[%clk 0:00:29]}  Rh2 {[%clk 0:00:02]} 65. Ra4 {[%clk 0:00:26]}  Rh8 {[%clk 0:00:02]} 66. Rxa2 {[%clk 0:00:24]}  Rf8 {[%clk 0:00:03]} 67. Ra7+ {[%clk 0:00:23]}  Kd6 {[%clk 0:00:03]} 68. Ke4 {[%clk 0:00:22]}  Ke6 {[%clk 0:00:03]} 69. Ra6+ {[%clk 0:00:21]}  Kf7 {[%clk 0:00:04]} 70. Kf5 {[%clk 0:00:20]}  Rh8 {[%clk 0:00:03]} 71. Ra7+ {[%clk 0:00:19]}  Kg8 {[%clk 0:00:03]} 72. Ra8+ {[%clk 0:00:18]}  Kf7 {[%clk 0:00:02]} 73. Ra7+ {[%clk 0:00:14]}  Kg8 {[%clk 0:00:03]} 74. Ke6 {[%clk 0:00:14]}  Rh6 {[%clk 0:00:01]} 75. Ra8+ {[%clk 0:00:13]}  Kh7 {[%clk 0:00:01]} 76. Rc8 {[%clk 0:00:12]}  Rh4 {[%clk 0:00:01]} 77. Rxc4 {[%clk 0:00:11]}  Re4+ {[%clk 0:00:01]} 78. Kf5 {[%clk 0:00:10]}  Re1 {[%clk 0:00:01]} 79. Rc7+ {[%clk 0:00:09]}  Kh6 {[%clk 0:00:01]} 80. f7 {[%clk 0:00:09]}  Rf1+ {[%clk 0:00:02]} 81. Ke6 {[%clk 0:00:09]}  Re1+ {[%clk 0:00:02]} 82. Be5 {[%clk 0:00:09]}  Kh7 {[%clk 0:00:02]} 83. f8=Q+ {[%clk 0:00:07]}  Kg6 {[%clk 0:00:00]} 84. Rg7+ {[%clk 0:00:06]} 1-0

[Event "December 12 Late 2023"]
[Site "https://www.chess.com"]
[Date "2023.12.12"]
[Round "11"]
[White "Weisz, Bryan"]
[Black "Sarkar, Justin"]
[Result "1-0"]
[Board "69"]
[TimeControl "180+1"]
[WhiteFideId "30934133"]
[BlackFideId "2010011"]
[WhiteElo "2432"]
[BlackElo "2291"]
[WhiteTeam "USA"]
[BlackTeam "USA"]
[WhiteClock "0:01:19"]
[BlackClock "0:00:00"]

1. e4 {[%clk 0:03:00]}  e5 {[%clk 0:02:33]} 2. Nh3 {[%clk 0:02:50]}  d5 {[%clk 0:02:30]} 3. d3 {[%clk 0:02:41]}  Nf6 {[%clk 0:02:25]} 4. Nd2 {[%clk 0:02:36]}  Bxh3 {[%clk 0:01:46]} 5. gxh3 {[%clk 0:02:36]}  Nc6 {[%clk 0:01:45]} 6. Bg2 {[%clk 0:02:35]}  dxe4 {[%clk 0:01:39]} 7. Nxe4 {[%clk 0:02:33]}  Nxe4 {[%clk 0:01:37]} 8. Bxe4 {[%clk 0:02:33]}  Qd7 {[%clk 0:01:32]} 9. Qg4 {[%clk 0:02:29]}  Nd4 {[%clk 0:01:19]} 10. Qxd7+ {[%clk 0:02:26]}  Kxd7 {[%clk 0:01:19]} 11. Kd1 {[%clk 0:02:20]}  c6 {[%clk 0:01:14]} 12. f4 {[%clk 0:02:09]}  f5 {[%clk 0:01:02]} 13. Bg2 {[%clk 0:02:08]}  Bd6 {[%clk 0:00:49]} 14. Be3 {[%clk 0:01:57]}  Ne6 {[%clk 0:00:43]} 15. fxe5 {[%clk 0:01:56]}  Bxe5 {[%clk 0:00:43]} 16. Re1 {[%clk 0:01:48]}  Bxh2 {[%clk 0:00:32]} 17. d4 {[%clk 0:01:39]}  Bg3 {[%clk 0:00:30]} 18. Rf1 {[%clk 0:01:39]}  f4 {[%clk 0:00:27]} 19. Bg1 {[%clk 0:01:40]}  Rad8 {[%clk 0:00:21]} 20. c3 {[%clk 0:01:38]}  Rhf8 {[%clk 0:00:20]} 21. Kc2 {[%clk 0:01:37]}  Ng5 {[%clk 0:00:19]} 22. Bf2 {[%clk 0:01:31]}  f3 {[%clk 0:00:10]} 23. Bh1 {[%clk 0:01:23]}  Bxf2 {[%clk 0:00:08]} 24. Rxf2 {[%clk 0:01:23]}  Nxh3 {[%clk 0:00:07]} 25. Rxf3 {[%clk 0:01:23]}  Rxf3 {[%clk 0:00:05]} 26. Bxf3 {[%clk 0:01:24]}  Ng5 {[%clk 0:00:05]} 27. Bg4+ {[%clk 0:01:24]}  Kd6 {[%clk 0:00:04]} 28. Rf1 {[%clk 0:01:23]}  Re8 {[%clk 0:00:02]} 29. Kd3 {[%clk 0:01:20]}  g6 {[%clk 0:00:02]} 30. c4 {[%clk 0:01:19]}  h5 {[%clk 0:00:02]} 31. Rf6+ {[%clk 0:01:18]}  Ke7 {[%clk 0:00:00]} 32. Rxg6 {[%clk 0:01:19]} 1-0

[Event "December 12 Late 2023"]
[Site "https://www.chess.com"]
[Date "2023.12.12"]
[Round "11"]
[White "Kniazev, Igor"]
[Black "Rios Escobar, Adan"]
[Result "0-1"]
[Board "73"]
[TimeControl "180+1"]
[WhiteFideId "4136349"]
[BlackFideId "3403645"]
[WhiteElo "2146"]
[BlackElo "2369"]
[WhiteTeam "RUS"]
[BlackTeam "CHI"]
[WhiteClock "0:00:07"]
[BlackClock "0:00:33"]

1. e4 {[%clk 0:03:00]}  c6 {[%clk 0:02:54]} 2. d4 {[%clk 0:02:59]}  d5 {[%clk 0:02:52]} 3. Nc3 {[%clk 0:03:00]}  dxe4 {[%clk 0:02:52]} 4. Nxe4 {[%clk 0:03:01]}  Nf6 {[%clk 0:02:52]} 5. Ng5 {[%clk 0:02:58]}  Bf5 {[%clk 0:02:31]} 6. Bc4 {[%clk 0:02:57]}  e6 {[%clk 0:02:31]} 7. Ne2 {[%clk 0:02:56]}  h6 {[%clk 0:02:27]} 8. Nf3 {[%clk 0:02:56]}  Nbd7 {[%clk 0:02:24]} 9. Nf4 {[%clk 0:02:46]}  Bd6 {[%clk 0:02:18]} 10. Nh4 {[%clk 0:02:38]}  Bh7 {[%clk 0:02:07]} 11. Nf3 {[%clk 0:02:12]}  O-O {[%clk 0:01:55]} 12. O-O {[%clk 0:02:09]}  Re8 {[%clk 0:01:56]} 13. Re1 {[%clk 0:02:08]}  b5 {[%clk 0:01:55]} 14. Bb3 {[%clk 0:02:07]}  c5 {[%clk 0:01:55]} 15. c3 {[%clk 0:01:46]}  Nb6 {[%clk 0:01:37]} 16. dxc5 {[%clk 0:01:38]}  Bxc5 {[%clk 0:01:34]} 17. Be3 {[%clk 0:01:34]}  Bxe3 {[%clk 0:01:30]} 18. Rxe3 {[%clk 0:01:32]}  Qc7 {[%clk 0:01:29]} 19. g3 {[%clk 0:01:19]}  Rad8 {[%clk 0:01:29]} 20. Qe2 {[%clk 0:01:19]}  Nc4 {[%clk 0:01:29]} 21. Bxc4 {[%clk 0:01:13]}  bxc4 {[%clk 0:01:30]} 22. Ne5 {[%clk 0:01:08]}  Nd5 {[%clk 0:01:26]} 23. Rf3 {[%clk 0:00:58]}  Nxf4 {[%clk 0:01:24]} 24. Rxf4 {[%clk 0:00:57]}  Bd3 {[%clk 0:01:24]} 25. Qf3 {[%clk 0:00:54]}  Qxe5 {[%clk 0:01:22]} 26. Rxf7 {[%clk 0:00:51]}  Be4 {[%clk 0:01:20]} 27. Qf4 {[%clk 0:00:48]}  Qxf4 {[%clk 0:01:17]} 28. Rxf4 {[%clk 0:00:49]}  Bd5 {[%clk 0:01:14]} 29. Re1 {[%clk 0:00:46]}  g5 {[%clk 0:00:58]} 30. Rd4 {[%clk 0:00:39]}  Kf7 {[%clk 0:00:47]} 31. Rd2 {[%clk 0:00:32]}  g4 {[%clk 0:00:45]} 32. h3 {[%clk 0:00:27]}  h5 {[%clk 0:00:45]} 33. hxg4 {[%clk 0:00:25]}  hxg4 {[%clk 0:00:46]} 34. Rd4 {[%clk 0:00:25]}  Bf3 {[%clk 0:00:45]} 35. Rxc4 {[%clk 0:00:21]}  Rh8 {[%clk 0:00:44]} 36. Rf4+ {[%clk 0:00:22]}  Ke7 {[%clk 0:00:43]} 37. Rxf3 {[%clk 0:00:20]}  gxf3 {[%clk 0:00:44]} 38. c4 {[%clk 0:00:16]}  Rd2 {[%clk 0:00:44]} 39. Rb1 {[%clk 0:00:14]}  Rhd8 {[%clk 0:00:42]} 40. c5 {[%clk 0:00:12]}  Rd1+ {[%clk 0:00:42]} 41. Rxd1 {[%clk 0:00:12]}  Rxd1+ {[%clk 0:00:43]} 42. Kh2 {[%clk 0:00:12]}  Kd7 {[%clk 0:00:42]} 43. g4 {[%clk 0:00:12]}  Kc6 {[%clk 0:00:39]} 44. Kg3 {[%clk 0:00:13]}  Kxc5 {[%clk 0:00:38]} 45. g5 {[%clk 0:00:14]}  Kd6 {[%clk 0:00:36]} 46. Kxf3 {[%clk 0:00:13]}  Ke5 {[%clk 0:00:35]} 47. Ke3 {[%clk 0:00:13]}  Kf5 {[%clk 0:00:34]} 48. f4 {[%clk 0:00:13]}  Rb1 {[%clk 0:00:34]} 49. b3 {[%clk 0:00:13]}  Rb2 {[%clk 0:00:34]} 50. g6 {[%clk 0:00:11]}  Kxg6 {[%clk 0:00:33]} 51. Kd4 {[%clk 0:00:12]}  Kf5 {[%clk 0:00:33]} 52. a4 {[%clk 0:00:11]}  Rxb3 {[%clk 0:00:33]} 53. Kc4 {[%clk 0:00:07]}  Rb1 {[%clk 0:00:33]} 0-1